fUSD/lending_fUSD_20250221
["ID","MTS","AMOUNT","RATE_DAILY","PERIOD"]
[354008335,1740179488871,-500.0,0.0001178,2]
[354008336,1740179488881,-270.86,0.0001178,2]
[354008337,1740179488890,-1000.0,0.0001178,2]
[354008338,1740179488900,-1000.0,0.00011842,2]
[354008339,1740179488910,-500.0,0.0001186,2]
[354008340,1740179488920,-500.0,0.0001186,2]
[354008341,1740179488929,-843.52,0.0001186,2]
[354008342,1740179488939,-808.86,0.0001186,2]
[354008343,1740179488949,-596.77,0.0001186,2]
[354008344,1740179488958,-555.97,0.0001186,2]
[354008345,1740179488967,-627.62,0.0001186,2]
[354008346,1740179488979,-267.92,0.0001186,2]
[354008347,1740179489000,-724.82,0.0001186,2]
[354008348,1740179489017,-609.83,0.0001186,2]
[354008349,1740179489036,-845.61,0.0001186,2]
[354008350,1740179489054,-500.0,0.0001186,2]
[354008351,1740179489068,-506.36,0.0001186,2]
[354008352,1740179489087,-500.0,0.0001186,2]
[354008353,1740179489106,-534.52,0.0001186,2]
[354008354,1740179489126,-563.37,0.0001186,2]
[354008355,1740179489143,-805.54,0.0001186,2]
[354008356,1740179489162,-500.0,0.0001186,2]
[354008357,1740179489180,-502.72,0.0001186,2]
[354008358,1740179489194,-729.47,0.0001186,2]
[354008359,1740179489211,-500.0,0.0001186,2]
[354008360,1740179489225,-500.0,0.0001186,2]
[354008361,1740179489239,-500.0,0.0001186,2]
[354008362,1740179489255,-1451.77,0.0001186,2]
[354008363,1740179489270,-1479.34,0.0001186,2]
[354008364,1740179489285,-500.0,0.0001186,2]
[354008365,1740179489300,-729.4,0.0001186,2]
[354008366,1740179489315,-744.69,0.0001186,2]
[354008367,1740179489330,-500.0,0.0001186,2]
[354008368,1740179489345,-500.0,0.00011861,2]
[354008369,1740179489361,-500.0,0.00011861,2]
[354008370,1740179489375,-500.0,0.00011861,2]
[354008371,1740179489391,-500.0,0.00011861,2]
[354008372,1740179489407,-175.48,0.00011861,2]
[354008373,1740179489422,-500.0,0.00011861,2]
[354008374,1740179489437,-405.25861797,0.00011861,2]
[354008375,1740179489453,-500.0,0.00011861,2]
[354008376,1740179489468,-500.0,0.00011861,2]
[354008377,1740179489483,-1405.8,0.00011861,2]
[354008378,1740179489499,-500.0,0.00011861,2]
[354008379,1740179489514,-500.0,0.00011861,2]
[354008380,1740179489529,-500.0,0.00011861,2]
[354008381,1740179489543,-500.0,0.00011861,2]
[354008382,1740179489559,-500.0,0.00011861,2]
[354008383,1740179489574,-500.0,0.00011861,2]
[354008384,1740179489589,-500.0,0.00011861,2]
[354008385,1740179489603,-619.56,0.00011861,2]
[354008386,1740179489618,-642.37,0.00011861,2]
[354008387,1740179489633,-500.0,0.00011861,2]
[354008388,1740179489647,-500.0,0.00011861,2]
[354008389,1740179489662,-500.0,0.00011861,2]
[354008390,1740179489676,-500.0,0.00011861,2]
[354008391,1740179489690,-500.0,0.00011861,2]
[354008392,1740179489705,-500.0,0.00011861,2]
[354008393,1740179489719,-536.05,0.00011861,2]
[354008394,1740179489735,-500.0,0.00011861,2]
[354008395,1740179489749,-500.0,0.00011861,2]
[354008396,1740179489764,-500.0,0.00011861,2]
[354008397,1740179489779,-557.1,0.00011861,2]
[354008398,1740179489793,-500.0,0.00011861,2]
[354008399,1740179489808,-500.0,0.00011861,2]
[354008400,1740179489821,-500.0,0.00011861,2]
[354008401,1740179489836,-500.0,0.00011861,2]
[354008402,1740179489854,-1083.37,0.00011861,2]
[354008403,1740179489868,-500.0,0.00011861,2]
[354008404,1740179489883,-563.59,0.00011861,2]
[354008405,1740179489898,-364.934744,0.00011861,2]
[354008406,1740179489912,-500.0,0.00011861,2]
[354008407,1740179489927,-728.43,0.00011861,2]
[354008408,1740179489943,-639.44,0.00011861,2]
[354008409,1740179489957,-500.0,0.00011861,2]
[354008410,1740179489972,-533.39,0.00011861,2]
[354008411,1740179489988,-500.0,0.00011861,2]
[354008412,1740179490002,-500.0,0.00011861,2]
[354008413,1740179490017,-240.54,0.00011861,2]
[354008414,1740179490032,-500.0,0.00011861,2]
[354008415,1740179490046,-500.0,0.00011861,2]
[354008416,1740179490061,-277.72,0.00011861,2]
[354008417,1740179490077,-749.97,0.00011861,2]
[354008418,1740179490091,-533.85,0.00011861,2]
[354008419,1740179490106,-500.0,0.00011861,2]
[354008420,1740179490127,-981.61,0.00011861,2]
[354008421,1740179490147,-500.0,0.00011861,2]
[354008422,1740179490166,-484.4,0.00011861,2]
[354008423,1740179490184,-500.0,0.00011861,2]
[354008424,1740179490200,-758.08,0.00011861,2]
[354008425,1740179490218,-578.28,0.00011861,2]
[354008426,1740179490235,-543.1,0.00011861,2]
[354008427,1740179490250,-500.0,0.00011861,2]
[354008428,1740179490267,-500.0,0.00011861,2]
[354008429,1740179490283,-341.63,0.00011861,2]
[354008430,1740179490298,-531.12,0.00011861,2]
[354008431,1740179490315,-1281.69,0.00011861,2]
[354008432,1740179490329,-500.0,0.00011861,2]
[354008433,1740179490345,-793.43,0.00011861,2]
[354008434,1740179490360,-500.0,0.00011861,2]
[354008435,1740179490376,-263.35,0.00011861,2]
[354008436,1740179490570,-1586.42,0.00011861,2]
[354008437,1740179490580,-333.06,0.00011861,2]
[354008438,1740179490591,-641.28,0.00011861,2]
[354008439,1740179490601,-500.0,0.00011861,2]
[354008440,1740179490611,-208.96,0.00011861,2]
[354008441,1740179490620,-500.0,0.00011861,2]
[354008442,1740179490630,-1880.49,0.00011861,2]
[354008443,1740179490640,-500.0,0.00011861,2]
[354008444,1740179490649,-500.0,0.00011861,2]
[354008445,1740179490659,-391.248668,0.00011861,2]
[354008446,1740179490668,-500.0,0.00011861,2]
[354008447,1740179490678,-1641.13,0.00011861,2]
[354008448,1740179490687,-661.16,0.00011861,2]
[354008449,1740179490696,-500.0,0.00011861,2]
[354008450,1740179490706,-500.0,0.00011861,2]
[354008451,1740179490717,-1068.88,0.00011861,2]
[354008452,1740179490726,-2271.45,0.00011861,2]
[354008453,1740179490736,-619.93,0.00011861,2]
[354008454,1740179490745,-588.04,0.00011861,2]
[354008455,1740179490755,-539.18,0.00011861,2]
[354008456,1740179490764,-1566.43,0.00011861,2]
[354008457,1740179490774,-1284.46,0.00011861,2]
[354008458,1740179490784,-500.0,0.00011861,2]
[354008459,1740179490793,-821.71,0.00011861,2]
[354008460,1740179490802,-579.37,0.00011861,2]
[354008461,1740179490812,-533.44,0.00011861,2]
[354008462,1740179490822,-1279.57,0.00011861,2]
[354008463,1740179490833,-500.0,0.00011862,2]
[354008464,1740179490844,-500.0,0.00011862,2]
[354008465,1740179490855,-500.0,0.00011862,2]
[354008466,1740179490864,-500.0,0.00011862,2]
[354008467,1740179490873,-1458.11,0.00011862,2]
[354008468,1740179490882,-500.0,0.00011862,2]
[354008469,1740179490893,-1068.38,0.00011862,2]
[354008470,1740179490902,-598.4,0.00011862,2]
[354008471,1740179490911,-234.55,0.00011862,2]
[354008472,1740179490920,-500.0,0.00011862,2]
[354008473,1740179490930,-500.0,0.00011862,2]
[354008474,1740179490940,-706.12,0.00011862,2]
[354008475,1740179490949,-500.0,0.00011862,2]
[354008476,1740179490959,-660.98,0.00011862,2]
[354008477,1740179490969,-575.05,0.00011862,2]
[354008478,1740179490978,-638.73,0.00011862,2]
[354008479,1740179490988,-703.61,0.00011862,2]
[354008480,1740179490998,-500.0,0.00011862,2]
[354008481,1740179491007,-500.0,0.00011862,2]
[354008482,1740179491017,-862.1,0.00011862,2]
[354008483,1740179491026,-500.0,0.00011862,2]
[354008484,1740179491035,-500.0,0.00011862,2]
[354008485,1740179491046,-500.0,0.00011862,2]
[354008486,1740179491055,-749.22,0.00011862,2]
[354008487,1740179491065,-584.21,0.00011862,2]
[354008488,1740179491074,-852.01,0.00011862,2]
[354008489,1740179491084,-564.47,0.00011862,2]
[354008490,1740179491093,-600.81,0.00011862,2]
[354008491,1740179491103,-2467.17,0.00011862,2]
[354008492,1740179491112,-500.0,0.00011862,2]
[354008493,1740179491122,-500.0,0.00011862,2]
[354008494,1740179491131,-500.0,0.00011862,2]
[354008495,1740179491140,-500.0,0.00011862,2]
[354008496,1740179491150,-1091.04,0.00011862,2]
[354008497,1740179491159,-500.0,0.00011862,2]
[354008498,1740179491168,-500.0,0.00011862,2]
[354008499,1740179491177,-506.66,0.00011862,2]
[354008500,1740179491186,-594.02,0.00011862,2]
[354008501,1740179491196,-500.0,0.00011862,2]
[354008502,1740179491206,-500.0,0.00011862,2]
[354008503,1740179491216,-1000.0,0.00011862,2]
[354008504,1740179491226,-627.96,0.00011863,2]
[354008505,1740179491235,-500.0,0.00011863,2]
[354008506,1740179491244,-500.0,0.00011863,2]
[354008507,1740179491254,-500.0,0.00011863,2]
[354008508,1740179491263,-500.0,0.00011863,2]
[354008509,1740179491273,-500.0,0.00011863,2]
[354008510,1740179491282,-500.0,0.00011863,2]
[354008511,1740179491292,-209.9,0.00011863,2]
[354008512,1740179491301,-500.0,0.00011863,2]
[354008513,1740179491311,-1249.92,0.00011863,2]
[354008514,1740179491322,-500.0,0.00011863,2]
[354008515,1740179491331,-690.35,0.00011863,2]
[354008516,1740179491341,-500.0,0.00011863,2]
[354008517,1740179491351,-395.84,0.00011863,2]
[354008518,1740179491361,-500.0,0.00011863,2]
[354008519,1740179491370,-500.0,0.00011863,2]
[354008520,1740179491379,-463.0,0.00011863,2]
[354008521,1740179491388,-500.0,0.00011863,2]
[354008522,1740179491399,-500.0,0.00011863,2]
[354008523,1740179491409,-504.1,0.00011863,2]
[354008524,1740179491419,-468.88,0.00011863,2]
[354008525,1740179491428,-542.66,0.00011863,2]
[354008526,1740179491438,-500.0,0.00011863,2]
[354008527,1740179491448,-500.0,0.00011863,2]
[354008528,1740179491459,-500.0,0.00011863,2]
[354008529,1740179491468,-500.0,0.00011863,2]
[354008530,1740179491478,-500.0,0.00011863,2]
[354008531,1740179491488,-500.0,0.00011863,2]
[354008532,1740179491497,-500.0,0.00011863,2]
[354008533,1740179491506,-1002.86,0.00011863,2]
[354008534,1740179491516,-456.78,0.00011863,2]
[354008535,1740179491526,-1519.06329144,0.0001187,2]
[354008536,1740179491536,-777.93,0.00011876,2]
[354008537,1740179491546,-1500.0,0.000119,4]
[354008538,1740179491555,-500.0,0.00011942,2]
[354008539,1740179491565,-618.5,0.00011942,2]
[354008540,1740179491575,-843.52,0.00011942,2]
[354008541,1740179491583,-808.86,0.00011942,2]
[354008542,1740179491593,-596.77,0.00011942,2]
[354008543,1740179491602,-555.97,0.00011942,2]
[354008544,1740179491611,-627.62,0.00011942,2]
[354008545,1740179491621,-724.82,0.00011942,2]
[354008546,1740179491630,-609.83,0.00011942,2]
[354008547,1740179491641,-845.61,0.00011942,2]
[354008548,1740179491651,-500.0,0.00011942,2]
[354008549,1740179491660,-506.36,0.00011942,2]
[354008550,1740179491670,-619.18,0.00011942,2]
[354008551,1740179491680,-534.52,0.00011942,2]
[354008552,1740179491690,-563.37,0.00011942,2]
[354008553,1740179491699,-805.54,0.00011942,2]
[354008554,1740179491708,-500.0,0.00011942,2]
[354008555,1740179491718,-502.72,0.00011942,2]
[354008556,1740179491727,-729.47,0.00011942,2]
[354008557,1740179491737,-273.72,0.00011942,2]
[354008558,1740179491746,-500.0,0.00011942,2]
[354008559,1740179491756,-500.0,0.00011942,2]
[354008560,1740179491765,-1451.77,0.00011942,2]
[354008561,1740179491774,-1479.34,0.00011942,2]
[354008562,1740179491784,-500.0,0.00011942,2]
[354008563,1740179491793,-729.4,0.00011942,2]
[354008564,1740179491803,-744.69,0.00011942,2]
[354008565,1740179491813,-500.0,0.00011942,2]
[354008566,1740179491822,-500.0,0.00011943,2]
[354008567,1740179491832,-500.0,0.00011943,2]
[354008568,1740179491843,-500.0,0.00011943,2]
[354008569,1740179491856,-500.0,0.00011943,2]
[354008570,1740179491865,-617.63,0.00011943,2]
[354008571,1740179491874,-500.0,0.00011943,2]
[354008572,1740179491884,-500.0,0.00011943,2]
[354008573,1740179491894,-1405.8,0.00011943,2]
[354008574,1740179491904,-500.0,0.00011943,2]
[354008575,1740179491914,-583.94945287,0.00011943,2]
[354008576,1740179491924,-500.0,0.00011943,2]
[354008577,1740179491933,-500.0,0.00011943,2]
[354008578,1740179491943,-500.0,0.00011943,2]
[354008579,1740179491952,-500.0,0.00011943,2]
[354008580,1740179491962,-500.0,0.00011943,2]
[354008581,1740179491972,-619.56,0.00011943,2]
[354008582,1740179491981,-642.37,0.00011943,2]
[354008583,1740179491991,-500.0,0.00011943,2]
[354008584,1740179492000,-500.0,0.00011943,2]
[354008585,1740179492010,-607.68,0.00011943,2]
[354008586,1740179492020,-500.0,0.00011943,2]
[354008587,1740179492029,-500.0,0.00011943,2]
[354008588,1740179492039,-500.0,0.00011943,2]
[354008589,1740179492049,-263.38,0.00011943,2]
[354008590,1740179492058,-500.0,0.00011943,2]
[354008591,1740179492068,-500.0,0.00011943,2]
[354008592,1740179492078,-500.0,0.00011943,2]
[354008593,1740179492088,-500.0,0.00011943,2]
[354008594,1740179492098,-260.18,0.00011943,2]
[354008595,1740179492107,-319.55,0.00011943,2]
[354008596,1740179492116,-1083.37,0.00011943,2]
[354008597,1740179492126,-500.0,0.00011943,2]
[354008598,1740179492135,-563.59,0.00011943,2]
[354008599,1740179492145,-364.934744,0.00011943,2]
[354008600,1740179492155,-500.0,0.00011943,2]
[354008601,1740179492165,-728.43,0.00011943,2]
[354008602,1740179492174,-639.44,0.00011943,2]
[354008603,1740179492184,-500.0,0.00011943,2]
[354008604,1740179492195,-533.39,0.00011943,2]
[354008605,1740179492204,-500.0,0.00011943,2]
[354008606,1740179492214,-500.0,0.00011943,2]
[354008607,1740179492224,-500.0,0.00011943,2]
[354008608,1740179492234,-500.0,0.00011943,2]
[354008609,1740179492244,-749.97,0.00011943,2]
[354008610,1740179492253,-500.0,0.00011943,2]
[354008611,1740179492263,-533.85,0.00011943,2]
[354008612,1740179492272,-981.61,0.00011943,2]
[354008613,1740179492282,-594.09,0.00011943,2]
[354008614,1740179492292,-500.0,0.00011943,2]
[354008615,1740179492301,-758.08,0.00011943,2]
[354008616,1740179492311,-578.28,0.00011943,2]
[354008617,1740179492321,-500.0,0.00011943,2]
[354008618,1740179492331,-500.0,0.00011943,2]
[354008619,1740179492341,-531.12,0.00011943,2]
[354008620,1740179492351,-1281.69,0.00011943,2]
[354008621,1740179492361,-500.0,0.00011943,2]
[354008622,1740179492370,-793.43,0.00011943,2]
[354008623,1740179492380,-500.0,0.00011943,2]
[354008624,1740179492390,-1586.42,0.00011943,2]
[354008625,1740179492399,-641.28,0.00011943,2]
[354008626,1740179492410,-257.66,0.00011943,2]
[354008627,1740179492420,-380.6867707,0.00011943,2]
[354008628,1740179492431,-1880.49,0.00011943,2]
[354008629,1740179492440,-500.0,0.00011943,2]
[354008630,1740179492451,-500.0,0.00011943,2]
[354008631,1740179492461,-391.248668,0.00011943,2]
[354008632,1740179492470,-549.81,0.00011943,2]
[354008633,1740179492479,-1641.13,0.00011943,2]
[354008634,1740179492488,-151.0,0.00011943,2]
[354008635,1740179492498,-661.16,0.00011943,2]
[354008636,1740179492507,-500.0,0.00011943,2]
[354008637,1740179492518,-500.0,0.00011943,2]
[354008638,1740179492528,-1068.88,0.00011943,2]
[354008639,1740179492538,-2271.45,0.00011943,2]
[354008640,1740179492547,-619.93,0.00011943,2]
[354008641,1740179492557,-588.04,0.00011943,2]
[354008642,1740179492566,-539.18,0.00011943,2]
[354008643,1740179492576,-1566.43,0.00011943,2]
[354008644,1740179492585,-1284.46,0.00011943,2]
[354008645,1740179492595,-500.0,0.00011943,2]
[354008646,1740179492604,-821.71,0.00011943,2]
[354008647,1740179492614,-579.37,0.00011943,2]
[354008648,1740179492624,-533.44,0.00011943,2]
[354008649,1740179492634,-1279.57,0.00011943,2]
[354008650,1740179492644,-430.11,0.00011944,2]
[354008651,1740179492654,-580.55,0.00011944,2]
[354008652,1740179492664,-367.07066985,0.00011944,2]
[354008653,1740179492674,-500.0,0.00011944,2]
[354008654,1740179492818,-1458.11,0.00011944,2]
[354008655,1740179492830,-500.0,0.00011944,2]
[354008656,1740179492840,-1068.38,0.00011944,2]
[354008657,1740179492854,-598.4,0.00011944,2]
[354008658,1740179492864,-246.64,0.00011944,2]
[354008659,1740179492873,-500.0,0.00011944,2]
[354008660,1740179492883,-706.12,0.00011944,2]
[354008661,1740179492892,-500.0,0.00011944,2]
[354008662,1740179492902,-660.98,0.00011944,2]
[354008663,1740179492912,-575.05,0.00011944,2]
[354008664,1740179492922,-500.0,0.00011944,2]
[354008665,1740179492932,-638.73,0.00011944,2]
[354008666,1740179492941,-703.61,0.00011944,2]
[354008667,1740179492951,-500.0,0.00011944,2]
[354008668,1740179492960,-500.0,0.00011944,2]
[354008669,1740179492970,-862.1,0.00011944,2]
[354008670,1740179492979,-500.0,0.00011944,2]
[354008671,1740179492989,-500.0,0.00011944,2]
[354008672,1740179492999,-258.55,0.00011944,2]
[354008673,1740179493009,-749.22,0.00011944,2]
[354008674,1740179493018,-584.21,0.00011944,2]
[354008675,1740179493027,-852.01,0.00011944,2]
[354008676,1740179493037,-564.47,0.00011944,2]
[354008677,1740179493047,-600.81,0.00011944,2]
[354008678,1740179493057,-2467.17,0.00011944,2]
[354008679,1740179493066,-500.0,0.00011944,2]
[354008680,1740179493076,-500.0,0.00011944,2]
[354008681,1740179493086,-500.0,0.00011944,2]
[354008682,1740179493095,-500.0,0.00011944,2]
[354008683,1740179493104,-1091.04,0.00011944,2]
[354008684,1740179493114,-500.0,0.00011944,2]
[354008685,1740179493123,-170.08,0.00011944,2]
[354008686,1740179493133,-500.0,0.00011944,2]
[354008687,1740179493143,-506.66,0.00011944,2]
[354008688,1740179493153,-594.02,0.00011944,2]
[354008689,1740179493163,-500.0,0.00011944,2]
[354008690,1740179493173,-500.0,0.00011944,2]
[354008691,1740179493183,-1000.0,0.00011944,2]
[354008692,1740179493193,-6581.71662203,0.00011945,2]
[354008693,1740179493203,-500.0,0.00011945,2]
[354008694,1740179493213,-368.64,0.00011945,2]
[354008695,1740179493223,-500.0,0.00011945,2]
[354008696,1740179493232,-596.86,0.00011945,2]
[354008697,1740179493242,-500.0,0.00011945,2]
[354008698,1740179493252,-500.0,0.00011945,2]
[354008699,1740179493262,-500.0,0.00011945,2]
[354008700,1740179493271,-1249.92,0.00011945,2]
[354008701,1740179493281,-500.0,0.00011945,2]
[354008702,1740179493291,-690.35,0.00011945,2]
[354008703,1740179493300,-500.0,0.00011945,2]
[354008704,1740179493309,-500.0,0.00011945,2]
[354008705,1740179493319,-500.0,0.00011945,2]
[354008706,1740179493329,-500.0,0.00011945,2]
[354008707,1740179493338,-500.0,0.00011945,2]
[354008708,1740179493348,-504.1,0.00011945,2]
[354008709,1740179493359,-542.66,0.00011945,2]
[354008710,1740179493369,-500.0,0.00011945,2]
[354008711,1740179493378,-500.0,0.00011945,2]
[354008712,1740179493388,-500.0,0.00011945,2]
[354008713,1740179493398,-500.0,0.00011945,2]
[354008714,1740179493408,-500.0,0.00011945,2]
[354008715,1740179493418,-500.0,0.00011945,2]
[354008716,1740179493428,-500.0,0.00011945,2]
[354008717,1740179493438,-1002.86,0.00011945,2]
[354008718,1740179493450,-1896.29857343,0.00011975,2]
[354008719,1740179493460,-5337.84672981,0.00011976,2]
[354008720,1740179493470,-1105.750836,0.00012,2]
[354008721,1740179493480,-600.0,0.00012,2]
[354008722,1740179493489,-482.56432207,0.00012003,2]
[354008723,1740179493499,-1591.0,0.00012019,2]
[354008724,1740179493508,-500.0,0.00012024,2]
[354008725,1740179493518,-500.0,0.00012024,2]
[354008726,1740179493527,-390.18266358,0.00012024,2]
[354008727,1740179493537,-500.0,0.00012024,2]
[354008728,1740179493547,-843.52,0.00012024,2]
[354008729,1740179493556,-808.86,0.00012024,2]
[354008730,1740179493565,-596.77,0.00012024,2]
[354008731,1740179493575,-555.97,0.00012024,2]
[354008732,1740179493584,-627.62,0.00012024,2]
[354008733,1740179493594,-724.82,0.00012024,2]
[354008734,1740179493603,-609.83,0.00012024,2]
[354008735,1740179493613,-845.61,0.00012024,2]
[354008736,1740179493623,-500.0,0.00012024,2]
[354008737,1740179493632,-506.36,0.00012024,2]
[354008738,1740179493642,-534.52,0.00012024,2]
[354008739,1740179493652,-563.37,0.00012024,2]
[354008740,1740179493662,-805.54,0.00012024,2]
[354008741,1740179493672,-500.0,0.00012024,2]
[354008742,1740179493682,-502.72,0.00012024,2]
[354008743,1740179493692,-729.47,0.00012024,2]
[354008744,1740179493701,-500.0,0.00012024,2]
[354008745,1740179493711,-416.5,0.00012024,2]
[354008746,1740179493720,-1451.77,0.00012024,2]
[354008747,1740179493730,-1479.34,0.00012024,2]
[354008748,1740179493739,-500.0,0.00012024,2]
[354008749,1740179493749,-729.4,0.00012024,2]
[354008750,1740179493759,-744.69,0.00012024,2]
[354008751,1740179493768,-500.0,0.00012024,2]
[354008752,1740179493778,-500.0,0.00012026,2]
[354008753,1740179493789,-500.0,0.00012026,2]
[354008754,1740179493799,-500.0,0.00012026,2]
[354008755,1740179493808,-500.0,0.00012026,2]
[354008756,1740179493817,-251.76,0.00012026,2]
[354008757,1740179493827,-500.0,0.00012026,2]
[354008758,1740179493837,-1405.8,0.00012026,2]
[354008759,1740179493851,-500.0,0.00012026,2]
[354008760,1740179493861,-500.0,0.00012026,2]
[354008761,1740179493870,-500.0,0.00012026,2]
[354008762,1740179493880,-500.0,0.00012026,2]
[354008763,1740179493890,-500.0,0.00012026,2]
[354008764,1740179493900,-500.0,0.00012026,2]
[354008765,1740179493911,-619.56,0.00012026,2]
[354008766,1740179493921,-642.37,0.00012026,2]
[354008767,1740179493931,-500.0,0.00012026,2]
[354008768,1740179493941,-500.0,0.00012026,2]
[354008769,1740179493951,-500.0,0.00012026,2]
[354008770,1740179493960,-250.35,0.00012026,2]
[354008771,1740179493969,-500.0,0.00012026,2]
[354008772,1740179493979,-547.77,0.00012026,2]
[354008773,1740179493989,-500.0,0.00012026,2]
[354008774,1740179493998,-500.0,0.00012026,2]
[354008775,1740179494008,-187.2,0.00012026,2]
[354008776,1740179494018,-1083.37,0.00012026,2]
[354008777,1740179494027,-500.0,0.00012026,2]
[354008778,1740179494037,-563.59,0.00012026,2]
[354008779,1740179494047,-364.934744,0.00012026,2]
[354008780,1740179494057,-500.0,0.00012026,2]
[354008781,1740179494066,-728.43,0.00012026,2]
[354008782,1740179494076,-639.44,0.00012026,2]
[354008783,1740179494085,-500.0,0.00012026,2]
[354008784,1740179494095,-533.39,0.00012026,2]
[354008785,1740179494105,-159.544922,0.00012026,2]
[354008786,1740179494114,-500.0,0.00012026,2]
[354008787,1740179494124,-500.0,0.00012026,2]
[354008788,1740179494134,-500.0,0.00012026,2]
[354008789,1740179494143,-500.0,0.00012026,2]
[354008790,1740179494152,-749.97,0.00012026,2]
[354008791,1740179494164,-500.0,0.00012026,2]
[354008792,1740179494174,-533.85,0.00012026,2]
[354008793,1740179494183,-981.61,0.00012026,2]
[354008794,1740179494193,-500.0,0.00012026,2]
[354008795,1740179494202,-758.08,0.00012026,2]
[354008796,1740179494212,-578.28,0.00012026,2]
[354008797,1740179494221,-500.0,0.00012026,2]
[354008798,1740179494231,-500.0,0.00012026,2]
[354008799,1740179494241,-531.12,0.00012026,2]
[354008800,1740179494251,-1281.69,0.00012026,2]
[354008801,1740179494260,-500.0,0.00012026,2]
[354008802,1740179494269,-793.43,0.00012026,2]
[354008803,1740179494279,-500.0,0.00012026,2]
[354008804,1740179494288,-1586.42,0.00012026,2]
[354008805,1740179494298,-641.28,0.00012026,2]
[354008806,1740179494307,-1880.49,0.00012026,2]
[354008807,1740179494317,-500.0,0.00012026,2]
[354008808,1740179494327,-500.0,0.00012026,2]
[354008809,1740179494337,-391.248668,0.00012026,2]
[354008810,1740179494347,-1641.13,0.00012026,2]
[354008811,1740179494356,-661.16,0.00012026,2]
[354008812,1740179494365,-500.0,0.00012026,2]
[354008813,1740179494375,-500.0,0.00012026,2]
[354008814,1740179494385,-1068.88,0.00012026,2]
[354008815,1740179494394,-2271.45,0.00012026,2]
[354008816,1740179494404,-619.93,0.00012026,2]
[354008817,1740179494414,-588.04,0.00012026,2]
[354008818,1740179494423,-539.18,0.00012026,2]
[354008819,1740179494433,-1566.43,0.00012026,2]
[354008820,1740179494443,-1284.46,0.00012026,2]
[354008821,1740179494455,-221.2434,0.00012026,2]
[354008822,1740179494465,-602.76,0.00012026,2]
[354008823,1740179494474,-821.71,0.00012026,2]
[354008824,1740179494484,-579.37,0.00012026,2]
[354008825,1740179494494,-533.44,0.00012026,2]
[354008826,1740179494504,-1279.57,0.00012026,2]
[354008827,1740179494514,-500.0,0.00012027,2]
[354008828,1740179494523,-500.0,0.00012027,2]
[354008829,1740179494533,-569.36,0.00012027,2]
[354008830,1740179494543,-337.3,0.00012027,2]
[354008831,1740179494552,-500.0,0.00012027,2]
[354008832,1740179494562,-1249.92,0.00012027,2]
[354008833,1740179494571,-330.45,0.00012027,2]
[354008834,1740179494581,-690.35,0.00012027,2]